Cogmind - Beta 13 @@@ ROGUE MODE // 2024.04.19 @ 03:01:58 Player: GregoriusTechneticies Result: Destroyed by L-31 Rogue with Katana Performance ------------- Evolutions (1) 500 Regions Visited (3) 600 Robots Destroyed (28) 140 Value Destroyed (393) 393 Prototype IDs (0) 0 Alien Tech Used (0) 0 Bonus (0) 0 TOTAL SCORE: 1633 Bonus ------- None Cogmind --------- Core Integrity 0/400 Matter 254/300 Energy 99/100 System Corruption 0% Temperature Cool (0) Movement Core (50) Location -9/Materials Parts ------- > --- POWER (1) -------- (None) > --- PROPULSION (2) --- (None) > --- UTILITY (4) ------ Visual Processing Unit Terrain Scan Processor > --- WEAPON (2) ------- Light Assault Rifle > --- INVENTORY (5) ---- Sensor Array Improved Signal Interpreter Improved Terrain Scanner Seismic Detector Mining Claw Peak State ------------ > --- POWER ------------ Deuterium Engine > --- PROPULSION ------- Wheel Wheel > --- UTILITY ---------- Visual Processing Unit Sensor Array Improved Terrain Scanner Terrain Scan Processor > --- WEAPON ----------- Assault Rifle Light Assault Rifle > --- INVENTORY -------- Improved Signal Interpreter Seismic Detector Mining Claw [Rating: 15] Favorites ----------- Power Light Ion Engine Engine Light Ion Engine Propulsion Wheel Wheel Wheel Utility Improved Terrain Scanner Device Improved Terrain Scanner Processor Terrain Scan Processor Weapon Assault Rifle Energy Gun Medium Laser Ballistic Gun Assault Rifle Slashing Weapon Mining Claw Build | -11 -10 -10 -9 ------- Run | Yrd Mat Min Mat Slots Evolved 2 | . . . 2 Power . | . . . . Propulsion . | . . . . Utility 2 | . . . 2 Weapon . | . . . . Parts Attached 30 | 9 9 2 10 Power 3 | 1 1 1 . Engine 3 | 1 1 1 . Core . | . . . . Reactor . | . . . . Propulsion 9 | 3 5 1 . Treads . | . . . . Leg . | . . . . Wheel 9 | 3 5 1 . Hover . | . . . . Flight . | . . . . Utility 8 | 3 2 . 3 Device 6 | 3 2 . 1 Storage . | . . . . Processor 2 | . . . 2 Hackware . | . . . . Protection . | . . . . Artifact . | . . . . Weapon 10 | 2 1 . 7 Energy Gun 2 | 1 . . 1 Energy Cannon . | . . . . Ballistic Gun 7 | 1 1 . 5 Ballistic Cannon . | . . . . Launcher . | . . . . Special Weapon . | . . . . Impact Weapon . | . . . . Slashing Weapon 1 | . . . 1 Piercing Weapon . | . . . . Special Melee Weapon . | . . . . Unidentified Prototypes . | . . . . Parts Lost 9 | . 2 . 7 Power 1 | . . . 1 Propulsion 3 | . 1 . 2 Utility 1 | . 1 . . Weapon 4 | . . . 4 Highest Loss Streak 4 | . 2 . 4 To Critical Strikes . | . . . . Average Slot Usage (%) 93 | . 99 100 58 Engine 13 | . 14 14 7 Wheel 25 | . 27 28 11 Device 24 | . 27 28 3 Processor 2 | . . . 22 Energy Gun 6 | . 9 . . Ballistic Gun 19 | . 18 28 12 Naked Turns . | . . . . Heaviest Build 14 | 9 10 14 14 Greatest Support 20 | 20 20 20 20 Greatest Overweight (x) 2 | 2 . . 1 Average Overweight (x) . | . . . . Largest Inventory Capacity 5 | 5 5 5 5 Average Capacity 5 | 5 5 5 5 Most Carried 5 | 5 5 5 5 Average Carried 4 | 2 4 5 4 Final Capacity 5 | 5 5 5 5 Final Carried 5 | 5 5 5 5 Class Distribution -------------------- 98% | Scavenger-Mutant Dominant Class ---------------- Scavenger-Mutant | -10/Materials Scavenger-Mutant | -10/Mines Scavenger-Mutant | -9/Materials Resources | -11 -10 -10 -9 ----------- Run | Yrd Mat Min Mat Matter Collected 840 | 425 268 40 107 Remotely . | . . . . Salvage Created 731 | 244 297 40 150 Parts 73 | 21 33 3 16 Haulers Intercepted . | . . . . Recyclers Shooed 4 | 1 3 . . Parts Field Recycled . | . . . . Retrieved Matter . | . . . . Parts Self-Destructed . | . . . . Prevented . | . . . . Kills | -11 -10 -10 -9 ------- Run | Yrd Mat Min Mat Combat Hostiles Destroyed 12 | . 7 . 5 Guns 12 | . 7 . 5 Classes Destroyed 8 | 3 4 . 1 Worker 3 | 2 1 . . Builder 1 | . 1 . . Tunneler 8 | 5 1 2 . Recycler 1 | 1 . . . Watcher 3 | . 3 . . Swarmer 6 | . 3 . 3 Grunt 5 | . 4 . 1 Sentry 1 | . . . 1 Best Kill Streak 5 | 5 4 2 4 Combat Bots Only 4 | . 3 . 4 Max Kills in Single Turn 2 | 2 1 1 1 Gunslinging . | . . . . Exploded . | . . . . Melee . | . . . . Uniques/NPCs Destroyed . | . . . . Combat | -11 -10 -10 -9 -------- Run | Yrd Mat Min Mat Hostile Shots Fired 113 | . 35 . 78 Missed 23 | . 7 . 16 Damage Taken 1169 | . 301 . 868 Core 520 | . 98 . 422 Absorbed by Shields . | . . . . Core Remaining (%) 80 | 100 . 60 . Volleys Fired 118 | 19 54 11 34 Largest 2 | 2 2 2 2 Hottest 76 | 70 70 40 76 Shots Fired 211 | 38 104 22 47 Gun 211 | 38 104 22 47 Cannon . | . . . . Launcher . | . . . . Special . | . . . . Kinetic 177 | 19 92 22 44 Thermal 34 | 19 12 . 3 Explosive . | . . . . Electromagnetic . | . . . . Robot Hit Streak 10 | 6 7 4 10 Robot Miss Streak 5 | 3 5 2 3 Penetration Max . | . . . . Secondary Targets 1 | . . . 1 Max Gunslinging Chain 1 | . . . 1 Shots Hit Robots 128 | 22 56 13 37 Core Hits 46 | 9 20 3 14 Critical Kills 1 | . 1 . . Critical Parts Destroyed . | . . . . Critical Strikes 3 | 2 1 . . Burn 2 | 2 . . . Destroy 1 | . 1 . . Melee Attacks 1 | . . . 1 Impact . | . . . . Slashing 1 | . . . 1 Piercing . | . . . . Sneak Attacks . | . . . . Combat Hostiles . | . . . . Follow-up Attacks . | . . . . Damage Inflicted 1341 | 296 597 130 318 Guns 1341 | 296 597 130 318 Cannons . | . . . . Explosions . | . . . . Melee . | . . . . Ramming . | . . . . Kinetic 1077 | 147 510 130 290 Thermal 264 | 149 87 . 28 Explosive . | . . . . Electromagnetic . | . . . . Impact . | . . . . Slashing . | . . . . Piercing . | . . . . Highest Corruption . | . . . . Average Corruption . | . . . . Corruption Purged . | . . . . Corruption Blocked . | . . . . Overload Shots . | . . . . Overflow Damage . | . . . . Projectiles . | . . . . Explosions . | . . . . Melee . | . . . . Knockbacks . | . . . . Impact . | . . . . Kinetic . | . . . . Secondary . | . . . . Self-Inflicted Damage . | . . . . Shots . | . . . . Rammed . | . . . . Targets Rammed . | . . . . Kicked . | . . . . Crushed . | . . . . Highest Temperature 54 | 54 27 . 42 Average Temperature 14 | 21 8 . 14 Received Heat Transfer 279 | . 144 . 135 Siege Activations . | . . . . Robots Corrupted . | . . . . Combat Hostiles . | . . . . Parts Fried . | . . . . Impact Corruptions . | . . . . Robots Melted . | . . . . Combat Hostiles . | . . . . Parts Melted . | . . . . Heat Transferred 925 | 592 259 . 74 Parts Sabotaged . | . . . . Parts Stolen . | . . . . Parts Stripped . | . . . . Power Chain Reactions . | . . . . Alert | -11 -10 -10 -9 ------- Run | Yrd Mat Min Mat Peak Influence 221 | 40 221 95 123 Initial 85 | . 26 85 37 Average 75 | 18 85 94 84 Maximum Alert Level 1 | . 1 . . Low Security (%) 99 | 100 98 100 100 Level 1 . | . 1 . . Level 2 . | . . . . Level 3 . | . . . . Level 4 . | . . . . Level 5 . | . . . . High Security . | . . . . Max Security . | . . . . Squads Dispatched 4 | . 2 1 1 Investigation 1 | . . 1 . Extermination . | . . . . Reinforcement 3 | . 2 . 1 Assault . | . . . . Garrison . | . . . . Intercept . | . . . . Searches Triggered . | . . . . Construction Impeded . | . . . . Haulers Reinforced . | . . . . Active Scanning Responses . | . . . . Cargo Convoy Interrupts . | . . . . Stealth | -11 -10 -10 -9 --------- Run | Yrd Mat Min Mat Distress Signals 4 | . 4 . . Communications Jammed . | . . . . Distress Signals . | . . . . Times Spotted 29 | . 21 . 8 Peak Tracking Total 5 | . 5 . 5 Tactical Retreats 3 | . 3 . . Traps | -11 -10 -10 -9 ------- Run | Yrd Mat Min Mat Traps Triggered . | . . . . Indirectly . | . . . . Trap Hack Attempts . | . . . . Triggered . | . . . . Disarmed . | . . . . Reprogrammed . | . . . . Reused . | . . . . Traps Extracted . | . . . . Installed . | . . . . Triggered . | . . . . Machines | -11 -10 -10 -9 ---------- Run | Yrd Mat Min Mat Machines Disabled . | . . . . Max in Single Turn . | . . . . Machines Repaired . | . . . . Machines Dismantled . | . . . . Machines Sabotaged . | . . . . Overloaded Fab Kills . | . . . . Hacking | -11 -10 -10 -9 --------- Run | Yrd Mat Min Mat Machines Accessed 2 | . 1 1 . Terminals 1 | . 1 . . Fabricators . | . . . . Repair Stations . | . . . . Recycling Units . | . . . . Scanalyzers . | . . . . Garrison Access . | . . . . Total Hacks 6 | . 5 1 . Successful 2 | . 1 1 . Failed 4 | . 4 . . Catastrophic . | . . . . Database Lockouts . | . . . . Manual 5 | . 5 . . Terminals 5 | . 5 . . Fabricators . | . . . . Repair Stations . | . . . . Recycling Units . | . . . . Scanalyzers . | . . . . Garrison Access . | . . . . Terminal Hacks 1 | . . 1 . Open Door 1 | . . 1 . Fabricator Hacks . | . . . . Repair Station Hacks . | . . . . Recycling Unit Hacks . | . . . . Scanalyzer . | . . . . Garrison Access Hacks . | . . . . Unauthorized Hacks 1 | . 1 . . Terminals 1 | . 1 . . Botnet 1 | . 1 . . Fabricators . | . . . . Repair Stations . | . . . . Recycling Units . | . . . . Scanalyzers . | . . . . Garrison Access . | . . . . Data Cores Recovered . | . . . . Used . | . . . . Hacking Detections 1 | . 1 . . Full Trace Events . | . . . . Feedback Events . | . . . . Feedback Blocked . | . . . . Robot Schematics Acquired . | . . . . Robots Built . | . . . . Authchips . | . . . . Time . | . . . . Total Robot Build Rating . | . . . . Part Schematics Acquired . | . . . . Parts Built . | . . . . Authchips . | . . . . Time . | . . . . Total Part Build Rating . | . . . . Parts Repaired . | . . . . Time . | . . . . Parts Recycled . | . . . . Recycled Matter . | . . . . Retrieved Matter . | . . . . Retrieved Components . | . . . . Parts Scanalyzed . | . . . . Part Schematics Acquired . | . . . . Parts Damaged . | . . . . Bothacking | -11 -10 -10 -9 ------------ Run | Yrd Mat Min Mat Used RIF Installer . | . . . . Robots Hacked . | . . . . Non-combat . | . . . . Combat . | . . . . Robot Hacks Applied . | . . . . Relay Couplers Released . | . . . . Fabnet Peak Effective % . | . . . . Robots Rewired . | . . . . Allies Hacked . | . . . . Hacks Repelled . | . . . . Allies | -11 -10 -10 -9 -------- Run | Yrd Mat Min Mat Total Allies . | . . . . Largest Group . | . . . . Highest-Rated Group . | . . . . Highest-Rated Ally . | . . . . Total Orders . | . . . . Ally Attacks . | . . . . Total Damage . | . . . . Kills . | . . . . Allies Corrupted . | . . . . Allies Melted . | . . . . Intel | -11 -10 -10 -9 ------- Run | Yrd Mat Min Mat Robot Analysis Total . | . . . . Derelict Logs Recovered 1 | . . 1 . Drone Launches . | . . . . Drone Recoveries . | . . . . Exploration | -11 -10 -10 -9 ------------- Run | Yrd Mat Min Mat Turns Passed 1142 | 188 612 213 129 Spaces Moved 584 | 120 204 211 49 Core 37 | 30 . . 7 Treads . | . . . . Legs . | . . . . Wheels 547 | 90 204 211 42 Hover . | . . . . Flight . | . . . . Fastest Speed 50 | 50 80 80 50 Average Speed 82 | 91 80 80 78 Slowest Speed 150 | 150 80 80 95 Overloaded Moves . | . . . . Propulsion Burnouts . | . . . . Robots Hopped . | . . . . Cave-ins Triggered . | . . . . Exploration Rate (%) 22 | 4 32 47 6 Regions Visited 3 Branch Regions 1 Pre-discovered Areas 1 | . . 1 . Known Exits Taken . | . . . . Unknown Exits Taken 3 | 1 1 1 . Scrap Searched . | . . . . Spaces Dug 1 | . . . 1 Terrain Destroyed 1 | . . . 1 Melee 1 | . . . 1 Projectile . | . . . . AOE . | . . . . Terrain Rammed . | . . . . Walls Destroyed . | . . . . Machines Disabled . | . . . . Actions | -11 -10 -10 -9 --------- Run | Yrd Mat Min Mat Total 1050 | 158 558 237 97 Wait 286 | . 276 10 . Move 581 | 119 203 210 49 Hop . | . . . . Pick Up 14 | 7 6 1 . Fast Attach 15 | 7 3 . 5 Attach 2 | . . . 2 Detach 2 | . . . 2 Swap 13 | 2 6 2 3 Drop 18 | 4 10 3 1 Fire 118 | 19 54 11 34 Melee 1 | . . . 1 Ram . | . . . . Kick . | . . . . Crush . | . . . . Escape Stasis . | . . . . Rewire . | . . . . Trap . | . . . . Miscellaneous . | . . . . Route ------- -11/Scrapyard -10/Materials -10/Mines -9/Materials History --------- Turn | Location | Event 19 | -11/Scrapyard | Discovered new exit (range 16) 189 | -11/Scrapyard | Entered Materials 307 | -10/Materials | Build established: Scavenger-Mutant 632 | -10/Materials | Discovered new exit (range 15) 801 | -10/Materials | Entered Mines 883 | -10/Mines | Learned location of Zion (-7) 902 | -10/Mines | Assembled infested the area 902 | -10/Mines | Met a Derelict shopkeep closing up shop 993 | -10/Mines | Received a Rocket Launcher from a helpful Derelict 1006 | -10/Mines | Discovered new exit (range 10) 1014 | -10/Mines | Entered Materials 1014 | -9/Materials | Evolved 2 slots: Utility x2 1098 | -9/Materials | Lost 3 parts (1n2w) 1119 | -9/Materials | Core integrity fell below 50% 1137 | -9/Materials | Core integrity fell below 20% 1143 | -9/Materials | Destroyed by L-31 Rogue with Katana Last Messages --------------- 01058_ Wheel destroyed. 01067_ Lgt. Assault Rifle destroyed. 01068_ Acquired Lgt. Assault Rifle. 01069_ Y-45 Defender destroyed. 01070_ Acquired 60 matter. 01071_ S-10 Pest destroyed. 01081_ Acquired Beam Rifle. 01085_ S-10 Pest destroyed. 01099_ Dropped Beam Rifle. 01102_ Acquired Lgt. Assault Rifle. 01104_ Acquired 15 matter. 01105_ Wheel destroyed. 01107_ Deuterium Engine destroyed. 01107_ G-34 Mercenary destroyed. 01118_ Lgt. Assault Rifle severed. 01119_ Lgt. Assault Rifle destroyed. 01121_ Acquired Lgt. Assault Rifle. 01127_ Lgt. Assault Rifle destroyed. 01130_ Acquired 32 matter. 01131_ Acquired Lgt. Assault Rifle. Map ----- +----------------------------------------------------+ | ?????????????????????????????????????????????????? | | ?????????????????????????????????????????????????? | | ?????????????????????????????????????????????????? | | ?????????????????????????????????????????????????? | | ?????????????????????????????????????????????????? | | ?????????????????????????????????????????????????? | | ?????????????????????????????????????????????????? | | ?????????????????????????????????????????????????? | | ?????????????????????????????????????????????????? | | ?????????????????????????????????????????????????? | | ????????????????????????????###??#???????????????? | | ???????????????????????????# ? #####????#??????? | | ??????????????????????????? ? ????????????? | | ???????????????????????????? ????#???????? | | ???????????????????????????? ??????#???????? | | ???????????????????????????? #?########??????? | | ?????????????????????######## #??# """ #??????? | | ?????????????????????# =!*# #??# """ #??????? | | ?????????????????????# *=%# #??# """ #??????? | | ?????????????????????# "=+ #??# #??????# | | ?????????????????????# =T # #??# #??#???? | | ?????????????????????#] ["*# #??# #??????? | | ?????????????????????# =*=!# #######+####?????? | | ?????????????????????####/### #?????# | | ????????????????????????#l#?# #?????# | | ????????????????????????#@### #?????? | | ??????????????????????###/;#####+######+####?????? | | ??????????????????????# # #?????? | | ??????????????????????# ! # """"" ##????? | | ??????????????????????# # """"" #?????? | | ??????????????????????# # """"" #?????? | | ??????????????????????# # #?????? | | ??????????????????????######################?????? | | | | | | | | | | | | | | | | | | | | | | | | | | | | | | | | | | | +----------------------------------------------------+ Best States ------------- Heat Dissipation 28 Energy Generation 14 Energy Capacity 275 Matter Stores 300 Matter Capacity 300 Sight Range 18 Robot Scan Range 14 Terrain Scan Range 16 Terrain Scan Density 85 Evasion (%) 50 Item Schematics ----------------- None Robot Schematics ------------------ None Fabricated ------------ Nothing Alien Tech Used ----------------- None Achievements -------------- None Challenges ------------ None Game ------ Seed LongswordImprovedHumpback Manual? 0 Play Time 00:15:53 Cumulative 40.2 hours Start 2024.04.19 @ 02:47:45 End 2024.04.19 @ 03:01:58 Sessions 1 Manual Loads 0 Difficulty Rogue Special Mode None Game No. 58 Rogue 43 Adventurer 0 Explorer 15 Win Type - Total 0 Types 0/0/0/0/0/0/0/0/0 Lore% 22 Gallery% 32 Achievement% 23 Wizard Run 0 Options --------- Layout 1 ASCII 0 Keyboard 0 Movement Mouse Keybinds 0 Fullscreen 1 Font 24/Smallcaps Map View 50x35 Zoom Use 0% Tactical HUD 1 Map Filters NONE Filters NONE Steam 1 RUN: 80a47e74-2be8-4a1d-b219-78eedfb47ba5